fUST/lending_fUST_20240110
["ID","MTS","AMOUNT","RATE_DAILY","PERIOD"]
[310994461,1704844242133,-500.0,0.00035616,2]
[310994462,1704844242142,-535.18588846,0.00035616,2]
[310994465,1704844242152,-572.18,0.00035616,2]
[310994466,1704844242161,-500.0,0.00035616,2]
[310994468,1704844242170,-500.0,0.00035616,2]
[310994471,1704844242179,-500.0,0.00035616,2]
[310994473,1704844242188,-500.0,0.00035616,2]
[310994475,1704844242198,-500.0,0.00035616,2]
[310994476,1704844242207,-500.0,0.00035616,2]
[310994478,1704844242216,-500.0,0.00035616,2]
[310994480,1704844242225,-500.0,0.00035616,2]
[310994482,1704844242235,-500.0,0.00035616,2]
[310994485,1704844242244,-469.14788274,0.00035616,2]
[310994487,1704844242255,-500.0,0.00035616,2]
[310994488,1704844242264,-500.0,0.00035616,2]
[310994490,1704844242274,-500.0,0.00035616,2]
[310994492,1704844242283,-503.21238465,0.00035616,2]
[310994494,1704844242292,-500.0,0.00035616,2]
[310994496,1704844242302,-369.30655585,0.00035616,2]
[310994498,1704844242311,-500.0,0.00035616,2]
[310994500,1704844242320,-581.62,0.00035616,2]
[310994503,1704844242330,-500.0,0.00035616,2]
[310994505,1704844242340,-500.0,0.00035616,2]
[310994507,1704844242349,-500.0,0.00035616,2]
[310994508,1704844242358,-500.0,0.00035616,2]
[310994511,1704844242367,-500.0,0.00035616,2]
[310994512,1704844242377,-500.0,0.00035616,2]
[310994515,1704844242387,-500.0,0.00035616,2]
[310994516,1704844242396,-501.54141502,0.00035616,2]
[310994519,1704844242406,-500.0,0.00035616,2]
[310994520,1704844242415,-569.71034661,0.00035616,2]
[310994522,1704844242424,-500.0,0.00035616,2]
[310994524,1704844242433,-500.0,0.00035616,2]
[310994526,1704844242442,-1434.72,0.00035616,2]
[310994528,1704844242452,-313.82233785,0.00035616,2]
[310994530,1704844242461,-500.0,0.00035616,2]
[310994533,1704844242470,-1000.0,0.00035616,2]
[310994534,1704844242479,-500.0,0.00035616,2]
[310994536,1704844242488,-500.0,0.00035616,2]
[310994539,1704844242498,-500.0,0.00035616,2]
[310994541,1704844242509,-500.41320758,0.00035616,2]
[310994543,1704844242518,-500.0,0.00035616,2]
[310994545,1704844242527,-3808.71,0.00035616,2]
[310994547,1704844242536,-500.0,0.00035616,2]
[310994549,1704844242546,-500.0,0.00035616,2]
[310994551,1704844242554,-603.27854241,0.00035616,2]
[310994553,1704844242564,-500.0,0.00035616,2]
[310994555,1704844242572,-500.0,0.00035616,2]
[310994557,1704844242581,-500.0,0.00035616,2]
[310994558,1704844242590,-500.0,0.00035616,2]
[310994562,1704844242602,-273.23332775,0.00035616,2]
[310994564,1704844242611,-500.0,0.00035616,2]
[310994566,1704844242621,-500.0,0.00035616,2]
[310994568,1704844242630,-453.65598886,0.00035616,2]
[310994570,1704844242639,-500.0,0.00035616,2]
[310994572,1704844242649,-500.0,0.00035616,2]
[310994574,1704844242658,-500.0,0.00035616,2]
[310994576,1704844242667,-500.00988812,0.00035616,2]
[310994578,1704844242676,-500.0,0.00035616,2]
[310994580,1704844242685,-500.90203694,0.00035616,2]
[310994582,1704844242694,-500.0,0.00035616,2]
[310994584,1704844242703,-500.0,0.00035616,2]
[310994586,1704844242712,-502.68075034,0.00035616,2]
[310994589,1704844242721,-500.0,0.00035616,2]
[310994592,1704844242730,-750.0,0.00035616,10]
[310994595,1704844242739,-500.53498006,0.00035616,2]
[310994597,1704844242748,-753.62,0.00035616,2]
[310994600,1704844242759,-196.89239958,0.00035616,2]
[310994605,1704844242769,-500.0,0.00035616,2]
[310994607,1704844242778,-500.0,0.00035616,2]
[310994610,1704844242786,-626.34084207,0.00035616,2]
[310994612,1704844242795,-500.0,0.00035616,2]
[310994614,1704844242804,-500.0,0.00035616,2]
[310994616,1704844242813,-500.0,0.00035616,2]
[310994618,1704844242822,-500.0,0.00035616,2]
[310994621,1704844242831,-500.0,0.00035616,2]
[310994624,1704844242840,-500.0,0.00035616,2]
[310994626,1704844242852,-514.17470731,0.00035616,2]
[310994629,1704844242861,-500.0,0.00035616,2]
[310994632,1704844242870,-531.27074928,0.00035616,2]
[310994634,1704844242879,-500.0,0.00035616,2]
[310994637,1704844242888,-500.0,0.00035616,2]
[310994640,1704844242898,-500.0,0.00035616,2]
[310994643,1704844242907,-500.0,0.00035616,2]
[310994646,1704844242916,-500.0,0.00035616,2]
[310994649,1704844242926,-500.0,0.00035616,2]
[310994652,1704844242935,-500.0,0.00035616,2]
[310994655,1704844242944,-500.0,0.00035616,2]
[310994657,1704844242953,-500.0,0.00035616,2]
[310994659,1704844242962,-500.0,0.00035616,2]
[310994661,1704844242971,-205.37417053,0.00035616,2]
[310994663,1704844242981,-501.27966863,0.00035616,2]
[310994665,1704844242990,-519.3,0.00035616,2]
[310994667,1704844242999,-602.04429128,0.00035616,2]
[310994669,1704844243009,-20000.0,0.00035616,10]
[310994671,1704844243018,-500.0,0.00035616,2]
[310994673,1704844243027,-500.0,0.00035616,2]
[310994675,1704844243036,-194.82128027,0.00035616,5]
[310994677,1704844243045,-500.0,0.00035616,2]
[310994679,1704844243054,-500.0,0.00035616,2]
[310994681,1704844243063,-812.52,0.00035616,2]
[310994683,1704844243072,-197.03020795,0.00035616,2]
[310994685,1704844243081,-508.34241231,0.00035616,2]
[310994687,1704844243090,-500.0,0.00035616,2]
[310994689,1704844243100,-506.83720369,0.00035616,2]
[310994691,1704844243109,-500.0,0.00035616,2]
[310994693,1704844243119,-500.0,0.00035616,2]
[310994695,1704844243127,-500.0,0.00035616,2]
[310994697,1704844243137,-500.0,0.00035616,2]
[310994699,1704844243146,-500.0,0.00035616,2]
[310994701,1704844243155,-500.0,0.00035616,2]
[310994703,1704844243164,-500.0,0.00035616,2]
[310994705,1704844243174,-2607.25,0.00035616,2]
[310994707,1704844243187,-506.43227445,0.00035616,2]
[310994709,1704844243196,-500.0,0.00035616,2]
[310994711,1704844243205,-601.18837547,0.00035616,2]
[310994713,1704844243215,-500.0,0.00035616,2]
[310994726,1704844243317,-500.45328493,0.00035616,2]
[310994728,1704844243326,-503.14331049,0.00035616,2]
[310994730,1704844243336,-500.0,0.00035616,2]
[310994733,1704844243344,-500.0,0.00035616,2]
[310994735,1704844243352,-513.51702195,0.00035616,2]
[310994737,1704844243362,-501.47854896,0.00035616,2]
[310994739,1704844243370,-500.0,0.00035616,2]
[310994741,1704844243378,-517.86667267,0.00035616,2]
[310994743,1704844243386,-500.0,0.00035616,2]
[310994745,1704844243395,-500.0,0.00035616,2]
[310994747,1704844243404,-500.0,0.00035616,2]
[310994749,1704844243413,-500.0,0.00035616,2]
[310994751,1704844243422,-500.0,0.00035616,2]
[310994753,1704844243430,-544.14,0.00035616,2]
[310994755,1704844243439,-500.0,0.00035616,2]
[310994757,1704844243448,-1728.68,0.00035616,2]
[310994759,1704844243457,-500.0,0.00035616,2]
[310994761,1704844243465,-500.0,0.00035616,2]
[310994763,1704844243474,-532.48570596,0.00035616,2]
[310994765,1704844243482,-355.65774064,0.00035616,2]
[310994767,1704844243491,-500.0,0.00035616,2]
[310994769,1704844243499,-500.0,0.00035616,2]
[310994771,1704844243510,-500.0,0.00035616,2]
[310994773,1704844243518,-555.29,0.00035616,2]
[310994775,1704844243527,-500.0,0.00035616,2]
[310994777,1704844243535,-500.0,0.00035616,2]
[310994779,1704844243544,-511.67022606,0.00035616,2]
[310994781,1704844243553,-1471.13,0.00035616,2]
[310994783,1704844243561,-505.31403919,0.00035616,2]
[310994785,1704844243570,-575.62651939,0.00035616,2]
[310994787,1704844243579,-500.0,0.00035616,2]
[310994789,1704844243587,-558.49909865,0.00035616,2]
[310994791,1704844243596,-500.0,0.00035616,2]
[310994793,1704844243604,-500.0,0.00035616,2]
[310994796,1704844243614,-500.70829364,0.00035616,2]
[310994798,1704844243622,-500.0,0.00035616,2]
[310994800,1704844243632,-500.0,0.00035616,2]
[310994802,1704844243640,-501.71932076,0.00035616,2]
[310994804,1704844243649,-354.98291733,0.00035616,2]
[310994806,1704844243658,-500.0,0.00035616,2]
[310994808,1704844243666,-500.0,0.00035616,2]
[310994809,1704844243674,-500.0,0.00035616,2]
[310994811,1704844243683,-220.47107168,0.00035616,2]
[310994813,1704844243691,-500.0,0.00035616,2]
[310994815,1704844243699,-500.0,0.00035616,2]
[310994817,1704844243707,-2056.36,0.00035616,2]
[310994819,1704844243715,-2056.36,0.00035616,2]
[310994821,1704844243723,-2056.36,0.00035616,2]
[310994823,1704844243730,-2056.36,0.00035616,2]
[310994825,1704844243739,-554.90031122,0.00035616,2]
[310994827,1704844243746,-2056.36,0.00035616,2]
[310994829,1704844243754,-2056.36,0.00035616,2]
[310994832,1704844243764,-2056.36,0.00035616,2]
[310994834,1704844243773,-2056.36,0.00035616,2]
[310994836,1704844243781,-500.0,0.00035616,2]
[310994838,1704844243790,-2056.36,0.00035616,2]
[310994840,1704844243799,-2056.36,0.00035616,2]
[310994842,1704844243809,-2056.36,0.00035616,2]
[310994844,1704844243818,-2056.36,0.00035616,2]
[310994846,1704844243827,-248.34132738,0.00035616,2]
[310994848,1704844243836,-2056.36,0.00035616,2]
[310994849,1704844243845,-2056.36,0.00035616,2]
[310994852,1704844243855,-2056.36,0.00035616,2]
[310994854,1704844243863,-2056.36,0.00035616,2]
[310994856,1704844243872,-2056.36,0.00035616,2]
[310994857,1704844243881,-2056.36,0.00035616,2]
[310994859,1704844243890,-2056.36,0.00035616,2]
[310994861,1704844243899,-2056.36,0.00035616,2]
[310994863,1704844243908,-2056.36,0.00035616,2]
[310994866,1704844243919,-2056.36,0.00035616,2]
[310994868,1704844243928,-501.43481431,0.00035616,2]
[310994870,1704844243937,-2056.36,0.00035616,2]
[310994872,1704844243945,-2056.54844852,0.00035616,2]
[310994873,1704844243954,-500.0,0.00035616,2]
[310994876,1704844243963,-500.0,0.00035616,2]
[310994878,1704844243973,-500.86234254,0.00035616,2]
[310994880,1704844243982,-414.1979926,0.00035616,2]
[310994881,1704844243991,-500.18667866,0.00035616,2]
[310994883,1704844244000,-500.0,0.00035616,2]
[310994886,1704844244011,-500.18326723,0.00035616,2]
[310994888,1704844244022,-634.32681973,0.00035616,2]
[310994890,1704844244031,-581.56,0.00035616,2]
[310994892,1704844244040,-505.30607923,0.00035616,2]
[310994894,1704844244050,-500.0,0.00035616,2]
[310994896,1704844244058,-500.0,0.00035616,2]
[310994897,1704844244068,-1365.01,0.00035616,2]
[310994900,1704844244077,-604.73200117,0.00035616,2]
[310994902,1704844244087,-500.0,0.00035616,2]
[310994904,1704844244099,-500.0,0.00035616,2]
[310994906,1704844244108,-500.0,0.00035616,2]
[310994908,1704844244117,-500.0,0.00035616,2]
[310994910,1704844244126,-567.1617221,0.00035616,2]
[310994912,1704844244135,-500.0,0.00035616,2]
[310994914,1704844244144,-176.41422842,0.00035616,2]
[310994916,1704844244154,-500.0,0.00035616,2]
[310994918,1704844244163,-500.0,0.00035616,2]
[310994920,1704844244172,-500.0,0.00035616,2]
[310994922,1704844244182,-500.0,0.00035616,2]
[310994924,1704844244191,-493.31782965,0.00035616,2]
[310994926,1704844244201,-500.0,0.00035616,2]
[310994928,1704844244210,-3709.22,0.00035616,2]
[310994930,1704844244219,-501.16573885,0.00035616,2]
[310994932,1704844244228,-500.0,0.00035616,2]
[310994934,1704844244237,-1733.28,0.00035616,2]
[310994936,1704844244246,-1532.08,0.00035616,2]
[310994938,1704844244256,-500.0,0.00035616,2]
[310994940,1704844244266,-500.0,0.00035616,2]
[310994942,1704844244280,-500.0,0.00035616,2]
[310994945,1704844244294,-523.29,0.00035616,2]
[310994947,1704844244308,-500.0,0.00035616,2]
[310994950,1704844244321,-500.0,0.00035616,2]
[310994952,1704844244332,-500.70656136,0.00035616,2]
[310994954,1704844244345,-500.0,0.00035616,2]
[310994956,1704844244358,-500.20616363,0.00035616,2]
[310994958,1704844244370,-500.0,0.00035616,2]
[310994960,1704844244383,-500.0,0.00035616,2]
[310994963,1704844244397,-517.84558427,0.00035616,2]
[310994965,1704844244409,-500.34286744,0.00035616,2]
[310994967,1704844244421,-500.0,0.00035616,2]
[310994969,1704844244431,-500.0,0.00035616,2]
[310994972,1704844244444,-500.0,0.00035616,2]
[310994974,1704844244456,-307.51765686,0.00035616,2]
[310994976,1704844244469,-500.0,0.00035616,2]
[310994979,1704844244480,-2404.59,0.00035616,2]
[310994981,1704844244492,-8733.16,0.00035616,2]
[310994984,1704844244506,-492.92540586,0.00035616,2]
[310994986,1704844244517,-522.21,0.00035616,2]
[310994988,1704844244527,-500.0,0.00035616,2]
[310994990,1704844244539,-500.0,0.00035616,2]
[310994993,1704844244553,-356.09894193,0.00035616,2]
[310994995,1704844244565,-1754.44,0.00035616,2]
[310994997,1704844244577,-500.0,0.00035616,2]
[310995000,1704844244589,-500.0,0.00035616,2]
[310995002,1704844244602,-5942.72,0.00035616,2]
[310995004,1704844244614,-506.84954695,0.00035616,2]
[310995007,1704844244626,-500.0,0.00035616,2]
[310995009,1704844244639,-575.14257119,0.00035616,2]
[310995011,1704844244652,-504.18025356,0.00035616,2]
[310995014,1704844244666,-500.0,0.00035616,2]
[310995016,1704844244679,-500.0,0.00035616,2]
[310995019,1704844244691,-500.0,0.00035616,2]
[310995021,1704844244702,-5907.46652027,0.00035616,2]
[310995046,1704844244950,-2172.10347973,0.00035616,2]
[310995048,1704844244962,-503.4854636,0.00035616,2]
[310995050,1704844244973,-500.0,0.00035616,2]
[310995053,1704844244984,-232.68741591,0.00035616,2]
[310995055,1704844244996,-500.0,0.00035616,2]
[310995057,1704844245008,-500.0,0.00035616,2]
[310995059,1704844245019,-200.0,0.00035616,2]
[310995061,1704844245031,-500.36532895,0.00035616,2]
[310995063,1704844245042,-515.88,0.00035616,2]
[310995066,1704844245053,-500.0,0.00035616,2]
[310995068,1704844245064,-698.91,0.00035616,2]
[310995070,1704844245076,-500.0,0.00035616,2]
[310995072,1704844245088,-500.0,0.00035616,2]
[310995074,1704844245099,-2007.44,0.00035616,2]
[310995077,1704844245110,-371.97783469,0.00035616,2]
[310995079,1704844245122,-128.02216531,0.00035616,2]
[310995081,1704844245131,-500.35757381,0.00035616,2]
[310995083,1704844245141,-500.0,0.00035616,2]
[310995085,1704844245150,-500.0,0.00035616,2]
[310995087,1704844245159,-500.0,0.00035616,2]
[310995089,1704844245169,-5750.93,0.00035616,2]
[310995091,1704844245179,-500.0,0.00035616,2]
[310995093,1704844245188,-500.0,0.00035616,2]
[310995095,1704844245198,-500.0,0.00035616,2]
[310995097,1704844245207,-500.0,0.00035616,2]
[310995099,1704844245216,-500.0,0.00035616,2]
[310995101,1704844245226,-500.0,0.00035616,2]
[310995102,1704844245235,-3665.7,0.00035616,2]
[310995104,1704844245245,-500.0,0.00035616,2]
[310995105,1704844245255,-17315.0,0.00035616,2]
[310995106,1704844245264,-500.0,0.00035616,2]
[310995107,1704844245274,-510.06108715,0.00035616,2]
[310995108,1704844245283,-1310.54,0.00035616,2]
[310995109,1704844245461,-500.0,0.00035616,2]
[310995110,1704844245475,-500.0,0.00035616,2]
[310995111,1704844245489,-170.35164909,0.00035616,2]
[310995112,1704844245499,-500.0,0.00035616,2]
[310995113,1704844245510,-500.0,0.00035616,2]
[310995114,1704844245519,-500.0,0.00035616,2]
[310995115,1704844245528,-500.0,0.00035616,2]
[310995116,1704844245537,-500.0,0.00035616,2]
[310995117,1704844245546,-500.0,0.00035616,2]
[310995118,1704844245555,-500.0,0.00035616,2]
[310995119,1704844245564,-500.0,0.00035616,2]
[310995120,1704844245573,-500.0,0.00035616,2]
[310995122,1704844245582,-1988.92,0.00035616,2]
[310995124,1704844245591,-500.0,0.00035616,2]
[310995125,1704844245600,-500.0,0.00035616,2]
[310995126,1704844245608,-500.0,0.00035616,2]
[310995127,1704844245617,-500.0,0.00035616,2]
[310995128,1704844245626,-500.0,0.00035616,2]
[310995129,1704844245636,-500.0,0.00035616,2]
[310995130,1704844245646,-500.0,0.00035616,2]
[310995131,1704844245655,-500.0,0.00035616,2]
[310995132,1704844245664,-500.0,0.00035616,2]
[310995133,1704844245674,-500.0,0.00035616,2]
[310995134,1704844245683,-249.82857974,0.00035616,2]
[310995135,1704844245692,-422.40092155,0.00035616,2]
[310995136,1704844245702,-500.0,0.00035616,2]
[310995137,1704844245711,-46994.92,0.00035616,2]
[310995138,1704844245721,-500.0,0.00035616,2]
[310995139,1704844245730,-500.0,0.00035616,2]
[310995140,1704844245739,-500.0,0.00035616,2]
[310995141,1704844245748,-500.0,0.00035616,2]
[310995142,1704844245759,-500.0,0.00035616,2]
[310995143,1704844245768,-500.0,0.00035616,2]
[310995145,1704844245776,-500.0,0.00035616,5]
[310995146,1704844245786,-538.95,0.00035616,2]
[310995148,1704844245795,-500.0,0.00035616,2]
[310995150,1704844245804,-500.0,0.00035616,2]
[310995151,1704844245814,-500.0,0.00035616,2]
[310995153,1704844245823,-500.0,0.00035616,2]
[310995155,1704844245833,-500.0,0.00035616,2]
[310995157,1704844245842,-680.43,0.00035616,2]
[310995158,1704844245852,-500.0,0.00035616,2]
[310995160,1704844245861,-500.0,0.00035616,2]
[310995162,1704844245871,-500.0,0.00035616,2]
[310995164,1704844245880,-506.25,0.00035616,2]
[310995166,1704844245889,-554.2,0.00035616,2]
[310995167,1704844245898,-2252.18,0.00035616,2]
[310995169,1704844245907,-500.0,0.00035616,2]
[310995171,1704844245916,-381.12834279,0.00035616,2]
[310995172,1704844245925,-500.0,0.00035616,2]
[310995174,1704844245935,-500.0,0.00035616,2]
[310995176,1704844245945,-500.0,0.00035616,2]
[310995178,1704844245954,-638.75462537,0.00035616,2]
[310995180,1704844245963,-1998.35,0.00035616,2]
[310995181,1704844245972,-500.0,0.00035616,2]
[310995183,1704844245981,-500.0,0.00035616,2]
[310995185,1704844245990,-500.0,0.00035616,2]
[310995187,1704844246000,-2853.99,0.00035616,2]
[310995188,1704844246010,-500.0,0.00035616,2]
[310995190,1704844246019,-500.3522875,0.00035616,2]
[310995192,1704844246028,-500.0,0.00035616,2]
[310995194,1704844246037,-500.0,0.00035616,2]
[310995195,1704844246047,-500.0,0.00035616,2]
[310995197,1704844246056,-500.0,0.00035616,2]
[310995199,1704844246066,-2626.13,0.00035616,2]
[310995200,1704844246074,-374.41066116,0.00035616,2]
[310995202,1704844246084,-500.80230841,0.00035616,2]
[310995204,1704844246093,-500.0,0.00035616,2]
[310995206,1704844246103,-500.0,0.00035616,2]
[310995208,1704844246111,-500.0,0.00035616,2]
[310995210,1704844246120,-500.0,0.00035616,2]
[310995211,1704844246130,-500.0,0.00035616,2]
[310995213,1704844246140,-500.0,0.00035616,2]
[310995215,1704844246149,-500.0,0.00035616,2]
[310995217,1704844246159,-500.0,0.00035616,2]
[310995219,1704844246168,-500.41361829,0.00035616,2]
[310995220,1704844246178,-938.24,0.00035616,2]
[310995222,1704844246188,-500.0,0.00035616,2]
[310995224,1704844246197,-457.66355864,0.00035616,2]
[310995226,1704844246206,-577.71203112,0.00035616,2]
[310995227,1704844246215,-506.80683171,0.00035616,2]
[310995228,1704844246224,-507.81220053,0.00035616,2]
[310995230,1704844246233,-500.0,0.00035616,2]
[310995232,1704844246243,-500.0,0.00035616,2]
[310995234,1704844246252,-535.95716489,0.00035616,2]
[310995237,1704844246264,-422.84860486,0.00035616,2]
[310995240,1704844246273,-500.0,0.00035616,2]
[310995243,1704844246283,-4521.85,0.00035616,2]
[310995246,1704844246292,-500.0,0.00035616,2]
[310995249,1704844246302,-510.69327756,0.00035616,2]
[310995252,1704844246311,-500.0,0.00035616,2]
[310995255,1704844246320,-511.46965573,0.00035616,2]
[310995258,1704844246329,-500.0,0.00035616,2]
[310995263,1704844246338,-517.52671074,0.00035616,2]
[310995264,1704844246348,-500.0,0.00035616,2]
[310995269,1704844246358,-500.0,0.00035616,2]
[310995273,1704844246367,-500.0,0.00035616,2]
[310995274,1704844246376,-500.0,0.00035616,2]
[310995277,1704844246386,-500.20629385,0.00035616,2]
[310995281,1704844246395,-600.0,0.00035616,2]
[310995284,1704844246404,-299.67374614,0.00035616,2]
[310995287,1704844246414,-500.0,0.00035616,2]
[310995291,1704844246423,-511.79602753,0.00035616,2]
[310995294,1704844246432,-500.0,0.00035616,2]
[310995296,1704844246442,-500.0,0.00035616,2]
[310995299,1704844246451,-1891.98,0.00035616,2]
[310995302,1704844246460,-183.6338165,0.00035616,2]
[310995304,1704844246469,-609.646018,0.00035616,120]
[310995306,1704844246478,-7219.96520272,0.0003569,12]
[310995310,1704844246488,-1000.0,0.00035695,2]
[310995313,1704844246497,-200.0,0.000357,4]
[310995316,1704844246508,-1017.05585138,0.00035702,2]
[310995318,1704844246517,-1000.0,0.00035705,2]
[310995322,1704844246527,-1000.0,0.00035709,2]
[310995325,1704844246536,-1000.0,0.00035711,2]
[310995328,1704844246546,-13632.10155416,0.00035718,5]
[310995331,1704844246555,-5000.0,0.00035748,7]
[310995334,1704844246565,-581.56,0.00035753,2]
[310995337,1704844246574,-152.38900235,0.00035758,7]
[310995340,1704844246583,-153.37130973,0.00035764,7]
[310995342,1704844246592,-4000.0,0.00035798,2]
[310995345,1704844246601,-2000.0,0.000358,5]
[310995349,1704844246611,-153.37130973,0.00035809,7]
[310995351,1704844246620,-2000.0,0.0003581,5]
[310995353,1704844246629,-1000.0,0.00035812,2]
[310995355,1704844246638,-2000.0,0.0003582,5]
[310995357,1704844246648,-2000.0,0.0003583,5]
[310995359,1704844246657,-2000.0,0.0003584,5]
[310995361,1704844246666,-2000.0,0.0003585,5]
[310995363,1704844246677,-2000.0,0.0003586,5]
[310995365,1704844246687,-3749.284871,0.0003587,5]
[310995367,1704844246696,-167.96410175,0.00035888,4]
[310995369,1704844246706,-535.20908359,0.00035888,4]
[310995371,1704844246717,-158.69379657,0.00035888,4]
[310995373,1704844246727,-2175.32490339,0.00035888,4]
[310995375,1704844246737,-500.0,0.0003589,2]
[310995377,1704844246746,-538.29,0.0003589,2]
[310995379,1704844246758,-500.0,0.0003589,2]
[310995381,1704844246770,-500.0,0.0003589,2]
[310995383,1704844246779,-521.82658698,0.0003589,2]
[310995385,1704844246788,-501.01,0.0003589,2]
[310995387,1704844246797,-500.0,0.0003589,2]
[310995389,1704844246807,-770.06,0.0003589,2]
[310995391,1704844246816,-500.0,0.0003589,2]
[310995393,1704844246825,-500.0,0.0003589,2]
[310995395,1704844246835,-500.0,0.0003589,2]
[310995397,1704844246844,-500.0,0.0003589,2]
[310995399,1704844246854,-544.58567648,0.0003589,2]
[310995400,1704844246863,-500.0,0.0003589,2]
[310995402,1704844246872,-982.18,0.0003589,2]
[310995404,1704844246881,-500.0,0.0003589,2]
[310995406,1704844246890,-692.7,0.0003589,2]
[310995408,1704844246899,-493.98843626,0.0003589,2]
[310995410,1704844246908,-500.0,0.0003589,2]
[310995412,1704844246918,-500.0,0.0003589,2]
[310995414,1704844246927,-500.0,0.0003589,2]
[310995416,1704844246937,-613.87,0.0003589,2]
[310995418,1704844246947,-500.0,0.0003589,2]
[310995420,1704844246956,-572.18,0.0003589,2]
[310995422,1704844246965,-500.0,0.0003589,2]
[310995423,1704844246975,-511.80144977,0.0003589,2]
[310995425,1704844246985,-500.0,0.0003589,2]
[310995427,1704844246996,-500.0,0.0003589,2]
[310995429,1704844247007,-500.0,0.0003589,2]
[310995431,1704844247017,-500.0,0.0003589,2]
[310995433,1704844247027,-500.0,0.0003589,2]
[310995434,1704844247037,-500.0,0.0003589,2]
[310995436,1704844247046,-581.62,0.0003589,2]
[310995438,1704844247056,-197.01388374,0.0003589,2]
[310995440,1704844247068,-1434.72,0.0003589,2]
[310995442,1704844247078,-500.0,0.0003589,2]
[310995444,1704844247088,-1000.0,0.0003589,2]
[310995446,1704844247098,-500.0,0.0003589,2]
[310995448,1704844247107,-500.0,0.0003589,2]
[310995450,1704844247117,-500.0,0.0003589,2]
[310995452,1704844247126,-3808.71,0.0003589,2]
[310995454,1704844247135,-500.0,0.0003589,2]
[310995456,1704844247145,-500.0,0.0003589,2]
[310995458,1704844247154,-500.0,0.0003589,2]
[310995460,1704844247164,-500.0,0.0003589,2]
[310995461,1704844247173,-500.0,0.0003589,2]
[310995463,1704844247183,-500.0,0.0003589,2]
[310995465,1704844247192,-501.94083797,0.0003589,2]
[310995467,1704844247202,-500.0,0.0003589,2]
[310995469,1704844247212,-500.0,0.0003589,2]
[310995471,1704844247220,-500.0,0.0003589,2]
[310995472,1704844247230,-500.0,0.0003589,2]
[310995473,1704844247239,-753.62,0.0003589,2]
[310995475,1704844247248,-500.0,0.0003589,2]
[310995476,1704844247258,-500.0,0.0003589,2]
[310995477,1704844247268,-506.33631279,0.0003589,2]
[310995478,1704844247278,-500.0,0.0003589,2]
[310995479,1704844247287,-504.43281686,0.0003589,2]
[310995480,1704844247297,-500.0,0.0003589,2]
[310995481,1704844247308,-500.0,0.0003589,2]
[310995482,1704844247317,-500.0,0.0003589,2]
[310995483,1704844247327,-514.91833875,0.0003589,2]
[310995484,1704844247337,-500.0,0.0003589,2]
[310995485,1704844247347,-500.0,0.0003589,2]
[310995486,1704844247357,-500.0,0.0003589,2]
[310995487,1704844247366,-519.3,0.0003589,2]
[310995488,1704844247375,-500.0,0.0003589,2]
[310995489,1704844247384,-500.0,0.0003589,2]
[310995490,1704844247393,-812.52,0.0003589,2]
[310995491,1704844247404,-500.0,0.0003589,2]
[310995492,1704844247413,-500.0,0.0003589,2]
[310995493,1704844247422,-500.0,0.0003589,2]
[310995494,1704844247432,-500.0,0.0003589,2]